[Event "13th Poti Nana Aleksandria Cup"]
[Site "Poti"]
[Date "2018.07.19"]
[Round "8"]
[White "Mnatsakanian, Arsen"]
[Black "Aliyev, Ravan"]
[Result "0-1"]
[ECO "C00"]
[WhiteElo "2047"]
[BlackElo "2324"]
[Annotator "NA"]
[PlyCount "138"]
[EventDate "2018.07.13"]
[EventType "swiss"]
[EventCountry "GEO"]
[SourceTitle "playchess.com"]
[Source "ChessBase"]
[SourceQuality "1"]
[TimeControl "40/5400+30:1800+30"]

1. e4 {[%emt 0:00:00]} e6 {[%emt 0:06:42]} 2. d3 {[%emt 0:00:08]} d5 {[%emt 0:00:09]} 3. Nd2 {[%emt 0:00:04]} c5 {[%emt 0:00:12]} 4. g3 {[%emt 0:00:15]} Nc6 {[%emt 0:00:16]} 5. Bg2 {[%emt 0:00:04]} g6 {[%emt 0:00:09]} 6. Ngf3 {[%emt 0:00:51]} Bg7 {[%emt 0:00:09]} 7. O-O {[%emt 0:00:24]} Nge7 {[%emt 0:00:04]} 8. Re1 {[%emt 0:01:33]} O-O {[%emt 0:00:30]} 9. e5 {[%emt 0:05:14]} Qc7 {[%emt 0:00:37]} 10. Qe2 {[%emt 0:00:04]} g5 {[%emt 0:02:08]} 11. h3 {[%emt 0:09:35] A08: Königsindisch im Anzug} (11. Nb3 g4 12. Nh4 Qxe5 13. Qd1 Qd6 14. Qxg4 e5 15. Qe2 Ng6 16. Nf3 Bg4 17. h3 Bd7 18. c4 f5 {0-1 (31) Matt,F (2326)-Shengelia,D (2557) Austria 2016}) 11... Ng6 {[%emt 0:03:55]} 12. c3 {[%emt 0:16:04]} h6 {[%emt 0:02:26]} 13. d4 {[%emt 0:00:22]} cxd4 {[%emt 0:03:51]} 14. cxd4 {[%emt 0:00:03]} Nb4 {[%emt 0:07:01]} 15. Rd1 {[%emt 0:00:10]} b6 {[%emt 0:10:44]} 16. Nf1 {[%emt 0:02:35]} a5 $146 {[%emt 0:00:11]} ({Vorgänger:} 16... Ba6 17. Qd2 Nc2 18. Rb1 Rac8 {1-0 (26) Lingua,A (2244)-Lidovsky,S (1815) Buenos Aires 2013}) 17. b3 {[%emt 0:05:13]} Ba6 {[%emt 0:02:40]} 18. Qd2 {[%emt 0:00:12]} Rfc8 {[%emt 0:02:53]} 19. Ba3 {[%emt 0:12:18]} Qc3 {[%emt 0:02:11]} 20. Bb2 {[%emt 0:04:31]} Qxd2 {[%emt 0:02:15]} 21. Rxd2 {[%emt 0:00:05]} Ra7 {[%emt 0:13:17]} 22. Ne3 {[%emt 0:01:45]} Rac7 {[%emt 0:04:27]} 23. Bf1 {[%emt 0:07:18]} Bxf1 {[%emt 0:02:04]} 24. Kxf1 {[%emt 0:00:04]} f6 {[%emt 0:07:54]} 25. exf6 {[%emt 0:00:56]} Bxf6 {[%emt 0:00:04]} 26. Ne1 {[%emt 0:01:06]} h5 {[%emt 0:08:35]} 27. a3 {[%emt 0:00:53]} Na6 {[%emt 0:00:18]} 28. Nd3 {[%emt 0:01:07]} Ne7 {[%emt 0:07:21]} 29. Ke2 {[%emt 0:02:56]} Nb8 {[%emt 0:00:34]} 30. f4 {[%emt 0:03:48]} Nbc6 {[%emt 0:05:49]} 31. Ne1 {[%emt 0:00:26]} gxf4 {[%emt 0:02:50]} 32. gxf4 {[%emt 0:00:04]} Ng6 {[%emt 0:00:29]} 33. f5 {[%emt 0:00:59]} Nf4+ {[%emt 0:00:35]} 34. Kf3 {[%emt 0:00:09]} Nxh3 {[%emt 0:00:22]} 35. fxe6 {[%emt 0:04:59]} Ng5+ {[%emt 0:00:18]} 36. Kg2 {[%emt 0:01:08]} Ne7 {[%emt 0:01:49]} 37. Rf2 {[%emt 0:04:34]} Rf8 {[%emt 0:01:04]} 38. Nd3 {[%emt 0:02:02]} Nxe6 {[%emt 0:00:57]} 39. Raf1 {[%emt 0:01:38]} Bg5 {[%emt 0:00:56]} 40. Rxf8+ {[%emt 0:00:00]} Nxf8 {[%emt 0:00:00]} 41. Kf3 {[%emt 0:03:51]} Ne6 {[%emt 0:06:32]} 42. Rg1 {[%emt 0:03:42]} Kh7 {[%emt 0:02:09]} 43. Nxd5 {[%emt 0:06:00]} Nxd5 {[%emt 0:00:50]} 44. Ke4 $19 {[%emt 0:00:01]} Ndf4 {[%emt 0:11:32]} 45. Nxf4 {[%emt 0:06:55]} Bxf4 {[%emt 0:00:13]} 46. d5 {[%emt 0:00:21]} Bh2 {[%emt 0:11:22]} 47. Rh1 {[%emt 0:00:07]} Nc5+ {[%emt 0:00:00]} 48. Kf3 {[%emt 0:00:59]} Rf7+ {[%emt 0:00:20]} 49. Kg2 {[%emt 0:00:03]} Bd6 {[%emt 0:01:10]} 50. Rxh5+ {[%emt 0:00:02]} Kg6 {[%emt 0:00:02]} 51. Rh3 {[%emt 0:00:41]} Rf5 {[%emt 0:00:13]} 52. b4 {[%emt 0:02:39]} axb4 {[%emt 0:00:26]} 53. axb4 {[%emt 0:00:08]} Ne4 {[%emt 0:00:26]} 54. Bd4 {[%emt 0:00:59]} b5 {[%emt 0:01:07]} 55. Re3 {[%emt 0:00:08]} Rf2+ {[%emt 0:01:44]} 56. Kh1 {[%emt 0:00:03]} Rf1+ {[%emt 0:00:20]} 57. Kg2 {[%emt 0:00:02]} Rf2+ {[%emt 0:00:04]} 58. Kh1 {[%emt 0:00:03]} Kf5 {[%emt 0:00:37]} 59. Bb6 {[%emt 0:00:02]} Rf1+ {[%emt 0:00:27]} 60. Kg2 {[%emt 0:00:05]} Rf2+ {[%emt 0:00:01]} 61. Kh1 {[%emt 0:00:05]} Rd2 {[%emt 0:00:30]} 62. Rf3+ {[%emt 0:00:26]} Kg4 {[%emt 0:00:23]} 63. Rf7 {[%emt 0:00:21]} Rxd5 {[%emt 0:00:34]} 64. Be3 {[%emt 0:00:13]} Rd3 {[%emt 0:00:41]} 65. Ba7 {[%emt 0:00:04]} Bxb4 {[%emt 0:00:46]} 66. Bb8 {[%emt 0:00:10]} Bd6 {[%emt 0:00:42]} 67. Rg7+ {[%emt 0:00:09]} Kf5 {[%emt 0:00:15]} 68. Rb7 {[%emt 0:00:05]} Bxb8 {[%emt 0:00:15]} 69. Rxb8 {[%emt 0:00:13]} Rb3 {[%emt 0:00:12]} 0-1

[Event "13th Poti Nana Aleksandria Cup"]
[Site "Poti"]
[Date "2018.07.19"]
[Round "8"]
[White "Janiashvili, Mariami"]
[Black "Mesropian, Khachatur"]
[Result "1/2-1/2"]
[ECO "A04"]
[WhiteElo "1988"]
[BlackElo "2128"]
[Annotator "NA RC"]
[PlyCount "207"]
[EventDate "2018.07.13"]
[EventType "swiss"]
[EventCountry "GEO"]
[SourceTitle "playchess.com"]
[Source "ChessBase"]
[SourceQuality "1"]
[TimeControl "40/5400+30:1800+30"]

1. Nf3 {[%emt 0:00:00]} c5 {[%emt 0:00:00]} 2. b3 {[%emt 0:00:00]} Nc6 {[%emt 0:00:22]} 3. Bb2 {[%emt 0:00:00]} d5 {[%emt 0:00:46]} 4. e3 {[%emt 0:00:00]} Bg4 {[%emt 0:00:53]} 5. Be2 {[%emt 0:00:43]} Bxf3 {[%emt 0:01:07] A06: Réti Opening:1 Nf3 d5} (5... Nf6 6. O-O e6 7. d4 Be7 8. Nbd2 O-O 9. c4 cxd4 10. Nxd4 Bxe2 11. Qxe2 Rc8 12. Rfd1 Qa5 13. cxd5 Nxd5 14. Nc4 Nxd4 15. Bxd4 {0-1 (39) Jocys,D (2220)-Beinoras,M (2359) Klaipeda 2013}) 6. Bxf3 {[%emt 0:00:24]} e5 {[%emt 0:00:09]} 7. d3 {[%emt 0:02:43]} f5 {[%emt 0:01:35]} 8. O-O {[%emt 0:02:07]} Nf6 {[%emt 0:00:30]} 9. c4 {[%emt 0:00:59]} d4 {[%emt 0:06:10]} 10. Bxc6+ {[%emt 0:02:28]} bxc6 {[%emt 0:00:02]} 11. exd4 {[%emt 0:03:11]} exd4 $146 {[%emt 0:00:03]} ({Predecessor:} 11... cxd4 12. Qf3 Qd7 13. Re1 {0-1 (37) Malyuga,V (2129)-Maslov,A (2185) Zelenograd 2014}) 12. Re1+ {[%emt 0:01:36]} Kf7 {[%emt 0:00:16]} 13. Nd2 {[%emt 0:08:17]} Bd6 {[%emt 0:01:13]} 14. Nf3 {[%emt 0:00:05]} Re8 {[%emt 0:01:23]} 15. Rxe8 {[%emt 0:02:58]} Qxe8 {[%emt 0:03:33]} 16. Qe1 {[%emt 0:00:18]} h6 {[%emt 0:03:32]} 17. Qxe8+ {[%emt 0:01:53]} Rxe8 {[%emt 0:00:17]} 18. Re1 {[%emt 0:00:21]} g5 {[%emt 0:08:03]} 19. Rxe8 {[%emt 0:00:56]} Nxe8 {[%emt 0:00:16]} 20. h3 {[%emt 0:00:35]} Nc7 {[%emt 0:02:23]} 21. Kf1 {[%emt 0:05:22]} Ne6 {[%emt 0:00:09]} 22. g3 {[%emt 0:00:29]} h5 {[%emt 0:01:20]} 23. Bc1 $11 {[%emt 0:01:27]} Kf6 {[%emt 0:03:24]} 24. Ke2 {[%emt 0:02:43]} Kg6 {[%emt 0:09:43]} 25. Ba3 {[%emt 0:11:08]} g4 {[%emt 0:07:45]} 26. hxg4 {[%emt 0:00:19]} hxg4 {[%emt 0:00:27]} 27. Nh4+ {[%emt 0:03:34]} Kf6 {[%emt 0:01:40]} 28. Ng2 {[%emt 0:00:58]} Kg5 {[%emt 0:09:23]} 29. Bc1+ {[%emt 0:01:39]} f4 {[%emt 0:01:55]} 30. f3 {[%emt 0:17:15]} Kf5 {[%emt 0:02:18]} 31. fxg4+ {[%emt 0:04:07]} Kxg4 {[%emt 0:00:03]} 32. gxf4 {[%emt 0:01:01]} Ng7 {[%emt 0:04:08]} 33. Kf2 {[%emt 0:02:31]} Nf5 {[%emt 0:03:11]} 34. Ba3 {[%emt 0:00:54]} a6 {[%emt 0:01:09]} 35. Bc1 {[%emt 0:01:30]} Ng7 {[%emt 0:06:07]} 36. Bb2 {[%emt 0:05:11]} Ne6 {[%emt 0:00:47]} 37. Bc1 {[%emt 0:02:41]} Bc7 {[%emt 0:00:28]} 38. Ke2 {[%emt 0:01:21]} Bd8 {[%emt 0:04:06]} 39. Ba3 {[%emt 0:01:41]} Ba5 {[%emt 0:02:42]} 40. Bc1 {[%emt 0:00:00]} Ng7 {[%emt 0:00:00]} 41. Ba3 {[%emt 0:02:12]} Bb4 {[%emt 0:01:49]} 42. Bc1 {[%emt 0:01:15]} Nf5 {[%emt 0:06:13]} 43. Ne1 {[%emt 0:03:53]} Ng3+ {[%emt 0:02:55]} 44. Kf2 {[%emt 0:00:47]} Nh1+ {[%emt 0:06:13]} 45. Ke2 {[%emt 0:00:08]} Ng3+ {[%emt 0:00:59]} 46. Kf2 {[%emt 0:00:06]} Bxe1+ {[%emt 0:00:22]} 47. Kxe1 {[%emt 0:00:01]} Kf3 {[%emt 0:00:27]} 48. Kd2 {[%emt 0:01:39]} Nf1+ {[%emt 0:11:58]} 49. Kc2 {[%emt 0:00:12]} Ne3+ {[%emt 0:02:03]} 50. Kd2 {[%emt 0:00:10]} Kxf4 {[%emt 0:02:05]} 51. Ba3 {[%emt 0:00:28]} Nf1+ {[%emt 0:01:48]} 52. Ke2 {[%emt 0:03:20]} Ng3+ {[%emt 0:00:13]} 53. Kf2 {[%emt 0:00:41]} Nh1+ {[%emt 0:01:37]} 54. Ke2 {[%emt 0:05:17]} Ng3+ {[%emt 0:00:14]} 55. Kf2 {[%emt 0:01:10]} Nh1+ {[%emt 0:02:48]} 56. Ke2 {[%emt 0:00:07]} Ng3+ {[%emt 0:01:41]} 57. Kf2 {[%emt 0:00:09]} Nf5 {[%emt 0:00:43]} 58. Bxc5 {[%emt 0:00:26]} Ke5 {[%emt 0:00:34]} 59. b4 {[%emt 0:04:24]} Ng7 {[%emt 0:02:13]} 60. a4 {[%emt 0:01:19]} Ne6 {[%emt 0:00:09]} 61. Ba7 {[%emt 0:00:06]} Kf5 {[%emt 0:02:32]} 62. Ke2 {[%emt 0:03:03]} Ke5 {[%emt 0:00:45]} 63. Bb8+ {[%emt 0:01:13]} Kf5 {[%emt 0:00:09]} 64. Kd2 {[%emt 0:00:28]} Kf6 {[%emt 0:02:33]} 65. Kc2 {[%emt 0:03:01]} Ke7 {[%emt 0:00:26]} 66. Kb3 {[%emt 0:00:21]} a5 {[%emt 0:01:00]} 67. c5 {[%emt 0:00:37]} Kd7 {[%emt 0:00:54]} 68. Kc4 {[%emt 0:00:43]} axb4 {[%emt 0:00:03]} 69. Kxb4 {[%emt 0:00:08]} Kc8 {[%emt 0:00:06]} 70. Be5 {[%emt 0:00:11]} Kb7 {[%emt 0:00:14]} 71. Kc4 {[%emt 0:00:06]} Ka6 {[%emt 0:00:08]} 72. Kb4 {[%emt 0:01:52]} Kb7 {[%emt 0:00:37]} 73. Bg3 {[%emt 0:02:27]} Ka6 {[%emt 0:01:25]} 74. Be1 {[%emt 0:00:15]} Kb7 {[%emt 0:01:24]} 75. Kc4 {[%emt 0:00:24]} Ka6 {[%emt 0:00:02]} 76. Bb4 {[%emt 0:00:06]} Kb7 {[%emt 0:00:13]} 77. Kb3 {[%emt 0:00:08]} Nf4 {[%emt 0:00:57]} 78. Kc2 {[%emt 0:00:44]} Nd5 {[%emt 0:00:25]} 79. Bd2 {[%emt 0:01:54]} Nc7 {[%emt 0:00:26]} 80. Be1 {[%emt 0:03:56]} Ne6 {[%emt 0:00:18]} 81. Bb4 {[%emt 0:00:31]} Nf4 {[%emt 0:01:37]} 82. Ba5 {[%emt 0:02:26]} Kc8 {[%emt 0:01:02]} 83. Kd2 {[%emt 0:00:29]} Kd7 {[%emt 0:00:44]} 84. Kc2 {[%emt 0:01:22]} Kc8 {[%emt 0:01:30]} 85. Bb6 {[%emt 0:00:50]} Kb7 {[%emt 0:00:08]} 86. Ba5 {[%emt 0:01:58]} Ka6 {[%emt 0:00:06]} 87. Bd8 {[%emt 0:01:33]} Ne6 {[%emt 0:00:35]} 88. Be7 {[%emt 0:01:04]} Nf4 {[%emt 0:00:58]} 89. Bd6 {[%emt 0:00:31]} Ne6 {[%emt 0:00:02]} 90. Kb3 {[%emt 0:01:02]} Ka5 {[%emt 0:00:05]} 91. Be7 {[%emt 0:00:15]} Ka6 {[%emt 0:00:32]} 92. Kb4 {[%emt 0:00:48]} Nf4 {[%emt 0:00:14]} 93. Kc4 {[%emt 0:00:24]} Ne6 {[%emt 0:00:22]} 94. Bf6 {[%emt 0:01:14]} Ka5 {[%emt 0:00:03]} 95. Bxd4 {[%emt 0:00:28]} Kxa4 {[%emt 0:00:02]} 96. Bf6 {[%emt 0:01:38]} Ka5 {[%emt 0:00:36]} 97. Bc3+ {[%emt 0:00:53]} Ka6 {[%emt 0:00:26]} 98. Be5 {[%emt 0:00:14]} Kb7 {[%emt 0:01:11]} 99. d4 {[%emt 0:00:27]} Kc8 {[%emt 0:00:25]} 100. Kb4 {[%emt 0:00:15]} Nd8 {[%emt 0:01:24]} 101. Kc4 {[%emt 0:00:15]} Kd7 {[%emt 0:01:06]} 102. d5 {[%emt 0:00:16]} Nb7 {[%emt 0:00:56]} 103. dxc6+ {[%emt 0:00:12]} Kxc6 {[%emt 0:00:02]} 104. Bf4 {[%emt 0:00:07]} 1/2-1/2

[Event "13th Poti Nana Aleksandria Cup"]
[Site "Poti"]
[Date "2018.07.19"]
[Round "8"]
[White "Shanya Mishra"]
[Black "Arakelyan, Nare"]
[Result "1-0"]
[ECO "D11"]
[WhiteElo "1980"]
[BlackElo "1834"]
[Annotator "NA"]
[PlyCount "69"]
[EventDate "2018.07.13"]
[EventType "swiss"]
[EventCountry "GEO"]
[SourceTitle "playchess.com"]
[Source "ChessBase"]
[SourceQuality "1"]
[TimeControl "40/5400+30:1800+30"]

1. d4 {[%emt 0:05:05]} d5 {[%emt 0:00:00]} 2. c4 {[%emt 0:00:33]} c6 {[%emt 0:00:00]} 3. Nf3 {[%emt 0:00:15]} Nf6 {[%emt 0:00:00]} 4. e3 {[%emt 0:00:12]} Bg4 {[%emt 0:00:00]} 5. Nc3 {[%emt 0:00:40]} e6 {[%emt 0:00:49]} 6. Qb3 {[%emt 0:01:15]} Qb6 {[%emt 0:01:07]} 7. Ne5 {[%emt 0:00:59]} Bf5 {[%emt 0:00:42]} 8. c5 {[%emt 0:01:48]} Qc7 {[%emt 0:00:15]} 9. Bd3 {[%emt 0:05:46]} Bxd3 {[%emt 0:01:33]} 10. Nxd3 {[%emt 0:02:02]} Be7 {[%emt 0:02:18]} 11. O-O {[%emt 0:00:22]} Ng4 {[%emt 0:01:14]} 12. g3 {[%emt 0:00:46]} h5 {[%emt 0:00:57]} 13. e4 {[%emt 0:09:36]} h4 {[%emt 0:11:10]} 14. exd5 {[%emt 0:02:03]} exd5 {[%emt 0:02:11]} 15. f3 {[%emt 0:02:44]} Nxh2 {[%emt 0:13:22]} (15... Nf6 $16) 16. Bf4 {[%emt 0:00:46]} Qc8 {[%emt 0:00:27]} 17. Kxh2 {[%emt 0:01:46]} hxg3+ $18 {[%emt 0:00:49]} 18. Kxg3 {[%emt 0:00:08]} Bh4+ {[%emt 0:02:50]} 19. Kg2 {[%emt 0:00:26]} Qf5 {[%emt 0:02:21]} 20. Rfe1+ {[%emt 0:06:34]} Kd8 {[%emt 0:07:05]} 21. Red1 {[%emt 0:12:47]} g5 {[%emt 0:16:45]} 22. Bd6 {[%emt 0:01:34]} g4 {[%emt 0:02:58]} 23. f4 {[%emt 0:00:50]} Kc8 {[%emt 0:00:23]} 24. Qc2 {[%emt 0:03:01]} Nd7 {[%emt 0:05:43]} 25. Nb4 {[%emt 0:01:35]} Qe6 {[%emt 0:00:52]} 26. Qe2 {[%emt 0:01:36]} Qg6 {[%emt 0:00:10]} 27. Qd3 {[%emt 0:01:19]} f5 {[%emt 0:01:06]} 28. Rh1 {[%emt 0:00:16]} Nf6 {[%emt 0:00:29]} 29. Nxc6 {[%emt 0:01:52]} Nh5 {[%emt 0:04:14]} 30. Rxh4 {[%emt 0:03:44]} bxc6 {[%emt 0:01:18]} 31. Qa6+ {[%emt 0:01:55]} Kd8 {[%emt 0:00:03]} 32. Rah1 {[%emt 0:00:37]} Qe8 {[%emt 0:02:43]} 33. Qa5+ {[%emt 0:00:14]} Kd7 {[%emt 0:00:55]} 34. Qc7+ {[%emt 0:00:07]} Ke6 {[%emt 0:00:12]} 35. Rxh5 {[%emt 0:00:39]} 1-0

[Event "13th Poti Nana Aleksandria Cup"]
[Site "Poti"]
[Date "2018.07.19"]
[Round "8"]
[White "Tihonov, Gennady"]
[Black "Kokaia, Guram"]
[Result "0-1"]
[ECO "B52"]
[WhiteElo "1845"]
[BlackElo "2159"]
[Annotator "NA"]
[PlyCount "76"]
[EventDate "2018.07.13"]
[EventType "swiss"]
[EventCountry "GEO"]
[SourceTitle "playchess.com"]
[Source "ChessBase"]
[SourceQuality "1"]
[TimeControl "40/5400+30:1800+30"]

1. e4 {[%emt 0:03:53]} c5 {[%emt 0:06:27]} 2. Nf3 {[%emt 0:00:10]} d6 {[%emt 0:01:05]} 3. Bb5+ {[%emt 0:00:27]} Bd7 {[%emt 0:00:54]} 4. Bxd7+ {[%emt 0:00:06]} Qxd7 {[%emt 0:00:02]} 5. c4 {[%emt 0:00:29]} Nc6 {[%emt 0:01:23]} 6. d4 {[%emt 0:00:37]} cxd4 {[%emt 0:00:06]} 7. Nxd4 {[%emt 0:00:13]} g6 {[%emt 0:00:17]} 8. O-O {[%emt 0:00:43]} Bg7 {[%emt 0:00:05]} 9. Be3 {[%emt 0:01:46]} Nf6 {[%emt 0:00:16]} 10. Nc3 {[%emt 0:01:43]} Ng4 {[%emt 0:02:09]} 11. Qd2 {[%emt 0:03:10]} Nxe3 {[%emt 0:01:47]} 12. fxe3 {[%emt 0:00:07]} Ne5 {[%emt 0:01:24]} 13. b3 {[%emt 0:00:29]} O-O {[%emt 0:03:33]} 14. Rad1 {[%emt 0:02:39]} Rac8 {[%emt 0:02:38]} 15. Nd5 {[%emt 0:00:58]} h5 {[%emt 0:02:58]} 16. Qe1 {[%emt 0:01:47]} Qd8 {[%emt 0:05:40]} 17. Qh4 {[%emt 0:10:14]} Re8 {[%emt 0:02:45]} 18. Qf2 $15 {[%emt 0:01:42]} (18. Nf3 $11) 18... a6 {[%emt 0:06:27]} 19. Qd2 {[%emt 0:09:50]} e6 {[%emt 0:08:40]} 20. Nc3 {[%emt 0:03:40]} Qc7 {[%emt 0:02:40]} 21. Na4 {[%emt 0:04:18]} Red8 {[%emt 0:04:22]} 22. Nf3 {[%emt 0:04:18]} b5 {[%emt 0:01:54]} 23. cxb5 {[%emt 0:01:10]} axb5 {[%emt 0:02:39]} 24. Nb2 {[%emt 0:03:19]} d5 {[%emt 0:09:25]} 25. exd5 {[%emt 0:03:29]} Rxd5 {[%emt 0:02:05]} 26. Qe2 {[%emt 0:06:30]} Qc2 {[%emt 0:02:38]} 27. Qxc2 {[%emt 0:01:18]} Nxf3+ {[%emt 0:00:56]} 28. gxf3 {[%emt 0:03:14]} Rxc2 {[%emt 0:00:05]} 29. Rxd5 {[%emt 0:00:10]} exd5 {[%emt 0:00:05]} 30. Nd3 {[%emt 0:00:39]} Rxa2 {[%emt 0:01:28]} 31. Rd1 {[%emt 0:02:14]} d4 {[%emt 0:02:33]} 32. e4 {[%emt 0:00:15]} Rc2 {[%emt 0:02:43]} 33. h3 {[%emt 0:00:56]} Rc3 {[%emt 0:02:24]} 34. b4 {[%emt 0:00:14]} Rb3 {[%emt 0:02:00]} 35. Kg2 {[%emt 0:00:25]} Bf8 {[%emt 0:01:17]} 36. Kg3 {[%emt 0:03:00]} f6 {[%emt 0:03:20]} 37. f4 {[%emt 0:04:00]} Bxb4 {[%emt 0:00:47]} 38. Kh4 {[%emt 0:00:19]} Rxd3 {[%emt 0:01:20]} 0-1

[Event "13th Poti Nana Aleksandria Cup"]
[Site "Poti"]
[Date "2018.07.19"]
[Round "8"]
[White "Tsotsonava, Elene"]
[Black "Martynyuk, Elizaveta"]
[Result "0-1"]
[ECO "B34"]
[WhiteElo "1647"]
[BlackElo "2182"]
[Annotator "NA"]
[PlyCount "152"]
[EventDate "2018.07.13"]
[EventType "swiss"]
[EventCountry "GEO"]
[SourceTitle "playchess.com"]
[Source "ChessBase"]
[SourceQuality "1"]
[TimeControl "40/5400+30:1800+30"]

1. e4 c5 2. Nf3 Nc6 3. d4 cxd4 4. Nxd4 g6 5. Nc3 Bg7 6. Nde2 Nf6 7. g3 O-O 8. Bg2 d6 9. O-O Rb8 10. a4 a6 11. Nd5 {B70: Sicilian Dragon: 6 g3 and 6 Be2 (without a later Be3)} (11. h3 b5 12. axb5 axb5 13. Nd5 Nd7 14. Rb1 b4 15. Bg5 h6 16. Be3 e6 17. Ndf4 Nde5 18. b3 Ba6 19. Qd2 Kh7 20. Rfd1 Qc8 21. Nd4 Nxd4 22. Bxd4 {1-0 (55) Mchedlishvili,M (2603)-Demchenko,A (2660) Riadh 2017}) 11... e6 12. Nxf6+ Bxf6 13. c3 Qc7 14. Be3 Ne5 $146 ({Predecessor:} 14... b6 15. Qc2 Bb7 16. Rad1 Bg7 17. f4 Rfe8 18. Bf2 b5 19. axb5 axb5 {0-1 (42) Boguszlavszkij,J (2212)-Paschall,W (2377) Zalakaros 2016}) 15. Bd4 Bd7 16. b3 Ng4 17. Bxf6 Nxf6 18. Qd4 e5 19. Qd2 Bc6 20. Qd3 b5 21. axb5 axb5 22. Rfd1 Rfd8 23. Qe3 Kg7 24. c4 Ra8 25. Nc3 bxc4 26. bxc4 Bd7 27. Bf1 Be6 28. Rxa8 Rxa8 29. Nb5 Qc5 $11 30. Nxd6 Qxe3 31. fxe3 Ra3 32. Rd3 Ra1 33. Kg2 Rc1 34. Ra3 Ng4 35. h3 Rc2+ 36. Kg1 Nf2 37. Ra7 Nd1 38. Ra3 h5 39. Ne8+ Kf8 40. Nf6 Bxc4 41. Nd7+ Kg7 42. Nxe5 Bxf1 43. Kxf1 Kf6 44. Nd7+ Ke6 45. Rd3 Nf2 46. Nc5+ Kf6 47. Rd6+ Ke7 48. Rd7+ Ke8 49. Rd5 Nxh3 50. Nd3 Ke7 51. Nf4 Nf2 52. Ne2 Ng4 53. Rd3 Kf6 54. Ke1 Rb2 55. Nf4 Rh2 56. Rd6+ Kg7 57. Rd2 Rh1+ 58. Ke2 Rg1 59. Kf3 Rf1+ 60. Ke2 Rf2+ 61. Kd3 Rf3 62. Ne2 Rxe3+ 63. Kd4 Rf3 64. Rd3 Rf2 65. Nf4 Rf1 66. Nd5 Nf2 67. Rf3 Rd1+ 68. Ke5 Nd3+ 69. Kd6 Rd2 70. Re3 Nf2 71. e5 Ng4 72. Re1 Rd3 73. Rf1 Rxd5+ 74. Ke7 Rxe5+ 75. Kd6 Re3 76. Rg1 f5 0-1